Cogmind - Beta 15 @@@ ROGUE MODE // 2025.06.22 @ 14:54:42 Player: puppuppit Result: Self-destructed Performance ------------- Evolutions (5) 2500 Regions Visited (11) 2200 Robots Destroyed (128) 640 Value Destroyed (4122) 4122 Prototype IDs (223) 4460 Alien Tech Used (0) 0 Bonus (5653) 5653 TOTAL SCORE: 19575 Bonus ------- High Alert Combat Kills 426 Follower Combat Kills 1127 Registered with UFD 300 Met Optimus in HQ 500 Met Data Miner 300 Used Data Conduit 3000 Cogmind --------- Core Integrity 16/1000 Matter 300/300 Energy 41/100 System Corruption 3% Temperature Cool (57) Movement Hovering (60) Location -5/Factory Parts ------- > --- POWER (2) -------- (None) > --- PROPULSION (5) --- Antigrav System Antigrav System > --- UTILITY (5) ------ Medium Storage Unit Improved Target Analyzer Core Analyzer Makeshift Propulsion Shielding > --- WEAPON (5) ------- (None) > --- INVENTORY (10) --- Improved Heat Sink Matter Compressor (250) Matter Compressor (250) Weapon Mount High-powered Tractor Beam KE Penetrator Heavy Rocket Launcher Peak State ------------ > --- POWER ------------ Micro Nuclear Core Micro Fission Core > --- PROPULSION ------- Improved Treads Armored Treads Medium Treads Gravmag Array > --- UTILITY ---------- Large Storage Unit 0b10 Decoder Chip [Looter] Core Analyzer Core Analyzer > --- WEAPON ----------- Heavy Machine Gun Heavy Machine Gun Heavy Machine Gun Improved KE Penetrator > --- INVENTORY -------- Light Ion Engine Light Angular Momentum Engine Gravmag System Gravmag System Advanced Heat Sink Matter Compressor Matter Compressor Advanced Weight Redist. System Advanced Targeting Computer A0-MCA's Component Scanner Light Assault Rifle Heavy Missile Launcher Vortex Trap Vortex Trap [Rating: 70] Favorites ----------- Power Ion Engine Engine Ion Engine Power Core Light Fission Core Propulsion Improved Treads Treads Improved Treads Wheel Compact Wheel Hover Unit Gravmag Array Utility Large Storage Unit Device Improved Terrain Scanner Storage Large Storage Unit Processor Core Analyzer Hackware Hacking Suite Protection Makeshift Propulsion Shielding Weapon Light Assault Rifle Energy Gun Force Rifle Ballistic Gun Light Assault Rifle Ballistic Cannon Gauss Cannon Launcher Heavy Rocket Launcher Special Weapon Improved Plasma Cutter Slashing Weapon Greatsword Build | -11 -10 -10 -8 -6 -6 -6 -6 -6 -6 -5 -5 ------- Run | Yrd Mat Sub Scr Fac Was Fac Low Low Dat Pro Fac Slots Evolved 10 | . . . . 8 . . . . . . 2 Power 1 | . . . . 1 . . . . . . . Propulsion 3 | . . . . 3 . . . . . . . Utility 3 | . . . . 2 . . . . . . 1 Weapon 3 | . . . . 2 . . . . . . 1 Parts Attached 106 | 7 4 . 5 36 . 14 7 3 2 6 22 Power 21 | 1 . . 1 12 . 2 1 . . 1 3 Engine 10 | 1 . . . 7 . . . . . 1 1 Core 11 | . . . 1 5 . 2 1 . . . 2 Reactor . | . . . . . . . . . . . . Propulsion 28 | 2 2 . 1 7 . 2 1 . 2 2 9 Treads 7 | 2 2 . . 3 . . . . . . . Leg . | . . . . . . . . . . . . Wheel 4 | . . . 1 . . . . . . . 3 Hover 17 | . . . . 4 . 2 1 . 2 2 6 Flight . | . . . . . . . . . . . . Utility 30 | 2 2 . 2 9 . 5 1 2 . 3 4 Device 7 | 1 . . 1 1 . 1 1 1 . . 1 Storage 7 | 1 2 . 1 . . 1 . . . 1 1 Processor 10 | . . . . 6 . 1 . . . 1 2 Hackware 3 | . . . . 1 . 2 . . . . . Protection 3 | . . . . 1 . . . 1 . 1 . Artifact . | . . . . . . . . . . . . Weapon 27 | 2 . . 1 8 . 5 4 1 . . 6 Energy Gun 2 | . . . . . . 2 . . . . . Energy Cannon . | . . . . . . . . . . . . Ballistic Gun 17 | 2 . . 1 7 . . 4 1 . . 2 Ballistic Cannon 2 | . . . . . . 2 . . . . . Launcher 4 | . . . . 1 . 1 . . . . 2 Special Weapon 1 | . . . . . . . . . . . 1 Impact Weapon . | . . . . . . . . . . . . Slashing Weapon 1 | . . . . . . . . . . . 1 Piercing Weapon . | . . . . . . . . . . . . Special Melee Weapon . | . . . . . . . . . . . . Unidentified Prototypes 3 | . . . . 2 . 1 . . . . . Parts Lost 49 | . . . . 9 . 8 . 1 9 7 15 Power 6 | . . . . . . 2 . 1 . 1 2 Propulsion 20 | . . . . 3 . 2 . . 3 4 8 Utility 3 | . . . . 1 . 1 . . . . 1 Weapon 20 | . . . . 5 . 3 . . 6 2 4 Highest Loss Streak 9 | . . . . 2 . 4 . 1 9 7 5 To Critical Strikes . | . . . . . . . . . . . . Average Backups 11 | . 9 11 10 11 12 13 13 13 12 9 6 Power . | . . . . 1 4 2 2 1 1 1 . Propulsion 2 | . 3 4 1 1 1 3 4 3 2 . . Utility 5 | . 3 4 5 6 7 5 5 5 6 6 4 Weapon 2 | . 1 3 3 2 . 1 2 3 3 . 1 Tool/Special . | . . . . . . . . . . . . Unused Backups 38 | . . . 17 14 . 1 . . . . 6 Power 1 | . . . . . . 1 . . . . . Propulsion 6 | . . . 3 3 . . . . . . . Utility 23 | . . . 10 8 . . . . . . 5 Weapon 8 | . . . 4 3 . . . . . . 1 Tool/Special . | . . . . . . . . . . . . Average Slot Usage (%) 87 | . 100 100 98 92 86 66 79 85 82 63 32 Engine 5 | . 14 14 9 5 6 . . . . . . Core 3 | . . . 2 5 6 6 6 5 6 5 . Treads 17 | . 28 28 27 24 . . . . . . . Hover 7 | . . . . 3 26 19 21 26 25 21 4 Device 9 | . 14 14 14 . 6 7 13 13 13 5 . Storage 9 | . 14 14 14 6 6 6 6 6 6 6 1 Processor 6 | . . . . 15 13 7 6 6 6 11 13 Ballistic Gun 21 | . 28 28 28 25 20 1 15 26 22 . 2 Ballistic Cannon 1 | . . . . . . 6 5 . . 8 . Peak Build Rating 70 | 9 12 12 22 70 60 66 69 62 62 49 51 Average Rating 35 | 6 11 12 15 47 60 57 61 59 58 42 29 On Entrance 35 | . 9 12 12 20 60 60 64 58 61 39 26 Naked Turns . | . . . . . . . . . . . . Heaviest Build 52 | 13 28 28 28 52 42 52 51 47 48 48 20 Greatest Support 122 | 40 46 46 46 122 47 52 52 48 49 46 48 Greatest Overweight (x) 3 | 3 . . 1 . . . . . . 1 1 Average Overweight (x) . | . . . . . . . . . . . . Largest Inventory Capacity 15 | 8 15 15 15 15 15 15 15 15 15 15 15 Average Capacity 14 | 7 13 15 15 15 15 15 15 15 15 15 7 Most Carried 15 | 1 11 11 15 15 13 15 15 15 15 11 15 Average Carried 13 | . 9 11 13 14 13 14 14 14 13 9 6 Final Capacity 15 | 8 15 15 15 15 15 15 15 15 15 15 10 Final Carried 15 | 1 11 11 15 13 13 15 15 15 10 11 7 Class Distribution -------------------- 53% | Mutant 25% | Scavenger-Gunner 15% | Gunner Dominant Class ---------------- Mutant | -10/Materials Mutant | -10/Subcaves Mutant | -8/Scraptown Scavenger-Gunner | -6/Factory Scavenger-Gunner | -6/Waste Gunner | -6/Factory Gunner | -6/Lower Caves Scavenger-Gunner | -6/Lower Caves Mutant | -6/Data Miner Mutant | -5/Proximity Caves Mutant | -5/Factory Resources | -11 -10 -10 -8 -6 -6 -6 -6 -6 -6 -5 -5 ----------- Run | Yrd Mat Sub Scr Fac Was Fac Low Low Dat Pro Fac Matter Collected 5464 | 234 312 . 151 2434 . 723 263 424 . 128 795 Remotely . | . . . . . . . . . . . . Salvage Created 7362 | 144 312 . . 4019 199 1120 134 648 99 3 684 Parts 307 | 9 24 . . 151 5 43 5 29 3 1 37 Haulers Intercepted 4 | . . . . 4 . . . . . . . Recyclers Shooed 10 | . 1 . . 7 . 2 . . . . . Parts Field Recycled . | . . . . . . . . . . . . Retrieved Matter . | . . . . . . . . . . . . Parts Self-Destructed 58 | . . . . . . . 5 53 . . . Prevented . | . . . . . . . . . . . . Kills | -11 -10 -10 -8 -6 -6 -6 -6 -6 -6 -5 -5 ------- Run | Yrd Mat Sub Scr Fac Was Fac Low Low Dat Pro Fac Combat Hostiles Destroyed 73 | . 7 . . 36 1 8 2 10 1 1 7 Melee 1 | . . . . . . . . . . . 1 Guns 59 | . 7 . . 31 1 5 1 10 1 . 3 Cannons 5 | . . . . . . 3 1 . . 1 . AOE 8 | . . . . 5 . . . . . . 3 Classes Destroyed 20 | 3 4 . . 8 1 . 2 1 . 1 . Worker 12 | 2 1 . . 4 . 2 . . . . 3 Builder 7 | . 1 . . 3 . 3 . . . . . Tunneler 4 | 3 1 . . . . . . . . . . Hauler 4 | . . . . 4 . . . . . . . Recycler 22 | 1 . . . 13 . 5 . . . . 3 Mechanic 3 | . . . . 2 . . . . . . 1 Drone 1 | . . . . . . . . . . 1 . Watcher 3 | . 1 . . . . 2 . . . . . Swarmer 15 | . 3 . . 5 . 2 . 1 . . 4 Grunt 27 | . 4 . . 18 . 1 . 4 . . . Brawler 3 | . . . . 1 . . . 2 . . . Duelist 1 | . . . . . . . . 1 . . . Sentry 7 | . . . . 5 . 1 . 1 . . . Specialist 1 | . . . . 1 . . . . . . . Hunter 1 | . . . . . . . 1 . . . . Programmer 11 | . . . . 4 . 4 . . . . 3 Heavy 1 | . . . . 1 . . . . . . . Behemoth 2 | . . . . 1 . . . 1 . . . Compactor 1 | . . . . . 1 . . . . . . Enhanced Grunt 1 | . . . . . . . . . 1 . . Mutant 1 | . . . . . . . 1 . . . . Best Kill Streak 6 | 3 4 . . 6 1 3 1 4 1 2 6 Combat Bots Only 5 | . 4 . . 5 1 2 1 4 1 2 4 Max Kills in Single Turn 3 | 1 1 . . 3 1 2 1 2 1 1 2 Gunslinging 1 | . . . . . . . . 1 . . . Exploded 3 | . . . . 3 . . . . . . 2 Melee 1 | . . . . . . . . . . . 1 Uniques/NPCs Destroyed . | . . . . . . . . . . . . Combat | -11 -10 -10 -8 -6 -6 -6 -6 -6 -6 -5 -5 -------- Run | Yrd Mat Sub Scr Fac Was Fac Low Low Dat Pro Fac Hostile Shots Fired 669 | . 33 . . 214 . 165 2 21 23 52 159 Missed 263 | . 8 . . 80 . 83 . 9 9 23 51 Hits 406 | . 25 . . 134 . 82 2 12 14 29 108 Projectile 406 | . 25 . . 134 . 82 2 12 14 29 108 AOE 1 | . . . . . . . . . . . 1 Critical Strikes 14 | . 1 . . 4 . 2 . 1 . . 6 Actively Blocked 3 | . . . . . . . . . . . 3 Part Disruptions 1 | . . . . 1 . . . . . . . Damage Taken 7166 | . 249 . . 2347 . 966 32 227 664 592 2089 Core 1583 | . 53 . . 269 . 121 32 23 . 101 984 Absorbed by Shields . | . . . . . . . . . . . . Redirected to Shielding 79 | . . . . . . . . . . 31 48 Regen/Repaired (Parts) 97 | . . . . 97 . . . . . . . Core Remaining (%) 71 | 100 . . 78 . . . . . . 35 . Volleys Fired 348 | 27 32 . . 138 7 56 12 20 10 3 43 Largest 4 | 2 2 . . 4 3 3 4 4 4 2 2 Hottest 160 | 40 40 . . 129 80 160 160 114 120 80 53 Shots Fired 951 | 54 64 . . 514 21 108 25 78 35 7 45 Gun 861 | 54 64 . . 508 21 50 14 78 33 . 39 Cannon 69 | . . . . . . 51 11 . . 7 . Launcher 19 | . . . . 6 . 7 . . 2 . 4 Special 2 | . . . . . . . . . . . 2 Kinetic 881 | 54 64 . . 508 21 56 21 78 33 7 39 Thermal 51 | . . . . . . 45 4 . . . 2 Explosive 19 | . . . . 6 . 7 . . 2 . 4 Electromagnetic . | . . . . . . . . . . . . Robot Hit Streak 35 | 11 11 . . 15 5 20 9 29 35 3 7 Robot Miss Streak 5 | 2 2 . . 5 2 4 1 3 1 1 4 Penetration Max 1 | . . . . 1 . 1 . 1 1 . 1 Secondary Targets 11 | . . . . 7 1 . . 2 1 . . Max Gunslinging Chain 2 | . . . . 1 1 . . 2 1 . . Shots Hit Robots 633 | 39 46 . . 333 14 72 9 58 31 4 27 Core Hits 305 | 13 20 . . 173 2 26 5 23 17 2 24 Critical Kills 9 | . . . . 5 1 1 . . . . 2 Critical Parts Destroyed 9 | . . . . 2 . 2 1 1 1 . 2 Critical Strikes 26 | . . . . 7 1 8 1 1 1 1 6 Destroy 18 | . . . . 7 1 3 1 1 1 . 4 Blast 6 | . . . . . . 5 . . . 1 . Sever 2 | . . . . . . . . . . . 2 Melee Attacks 5 | . . . . . . . . . . . 5 Impact . | . . . . . . . . . . . . Slashing 5 | . . . . . . . . . . . 5 Piercing . | . . . . . . . . . . . . Sneak Attacks . | . . . . . . . . . . . . Combat Hostiles . | . . . . . . . . . . . . Follow-up Attacks . | . . . . . . . . . . . . Damage Inflicted 13060 | 293 370 . . 6106 305 2210 175 1209 963 121 1308 Guns 9888 | 293 370 . . 5347 305 775 103 1209 690 . 796 Cannons 1233 | . . . . . . 1040 72 . . 121 . Explosions 1699 | . . . . 727 . 363 . . 256 . 353 Melee 113 | . . . . . . . . . . . 113 Ramming 109 | . . . . 32 . 32 . . 17 . 28 Kinetic 10354 | 293 370 . . 5347 305 1072 151 1209 690 121 796 Thermal 785 | . . . . . . 743 24 . . . 18 Explosive 1699 | . . . . 727 . 363 . . 256 . 353 Electromagnetic . | . . . . . . . . . . . . Impact . | . . . . . . . . . . . . Slashing 113 | . . . . . . . . . . . 113 Piercing . | . . . . . . . . . . . . Highest Corruption 18 | . 1 1 . 1 8 11 11 11 16 18 3 Average Corruption 7 | . 1 1 . 1 6 10 11 11 13 16 2 Corruption Purged . | . . . . . . . . . . . . Corruption Blocked . | . . . . . . . . . . . . Effects 135 | . 4 . . 7 2 34 33 36 8 10 1 Message Errors 27 | . 2 . . 1 . 5 7 7 3 2 . Matter Fused 31 | . . . . 2 . 10 7 9 . 2 1 Heat Flow Errors 14 | . 2 . . . . 2 4 5 1 . . Energy Discharges 12 | . . . . 2 . 3 4 2 1 . . Parts Rejected 4 | . . . . . 2 2 . . . . . Parts Fused 3 | . . . . . . 1 . 2 . . . Data Loss (minor) 15 | . . . . . . 6 4 3 . 2 . Data Loss (major) 11 | . . . . . . 4 4 3 . . . Misfires 5 | . . . . . . 1 3 . . 1 . Alerts 2 | . . . . . . . . 1 . 1 . Misdirections 6 | . . . . . . . . 2 2 2 . Weapon Failures 5 | . . . . 2 . . . 2 1 . . Overload Shots . | . . . . . . . . . . . . Overflow Damage 147 | . . . . 70 . 62 . . 7 3 5 Projectiles 29 | . . . . . . 26 . . . 3 . Explosions 111 | . . . . 70 . 36 . . . . 5 Melee 7 | . . . . . . . . . 7 . . Knockbacks 10 | . . . . . . 9 . . . 1 . Impact . | . . . . . . . . . . . . Kinetic 10 | . . . . . . 9 . . . 1 . Secondary . | . . . . . . . . . . . . Self-Inflicted Damage 215 | . . . . 71 . 15 . . 8 . 121 Shots 4 | . . . . 2 . . . . . . 2 Rammed 12 | . . . . 3 . 3 . . 1 . 5 Targets Rammed 13 | . . . . 4 . 3 . . 1 . 5 Kicked . | . . . . . . . . . . . . Crushed 1 | . . . . 1 . . . . . . . Highest Temperature 312 | . 276 . . 312 4 240 201 233 148 63 . Average Temperature 76 | . 79 . . 83 3 59 62 90 78 35 . Received Heat Transfer 1359 | . 108 . . 633 . 249 20 48 . 99 202 Effects 5 | . . . . 1 . 1 3 . . . . Energy Bleed 2 | . . . . 1 . 1 . . . . . Interference 3 | . . . . . . . 3 . . . . Siege Activations . | . . . . . . . . . . . . Martial Activations . | . . . . . . . . . . . . Shielding Activations . | . . . . . . . . . . . . Robots Disrupted . | . . . . . . . . . . . . Combat Hostiles . | . . . . . . . . . . . . Robots Corrupted . | . . . . . . . . . . . . Combat Hostiles . | . . . . . . . . . . . . Parts Fried . | . . . . . . . . . . . . Impact Corruptions 1 | . . . . . . . . . 1 . . Robots Melted . | . . . . . . . . . . . . Combat Hostiles . | . . . . . . . . . . . . Parts Melted 1 | . . . . . . 1 . . . . . Heat Transferred 1184 | . . . . . . 1110 37 . . . 37 Parts Sabotaged . | . . . . . . . . . . . . Parts Stolen . | . . . . . . . . . . . . Parts Stripped . | . . . . . . . . . . . . Power Chain Reactions . | . . . . . . . . . . . . Alert | -11 -10 -10 -8 -6 -6 -6 -6 -6 -6 -5 -5 ------- Run | Yrd Mat Sub Scr Fac Was Fac Low Low Dat Pro Fac Maximum Alert Level 3 | . . . . 3 1 2 . . . . 2 Low Security (%) 37 | 100 100 . . 37 . 4 . . . . . Level 1 35 | . . . . 38 100 55 . . . . 33 Level 2 20 | . . . . 10 . 39 . . . . 66 Level 3 6 | . . . . 14 . . . . . . . Level 4 . | . . . . . . . . . . . . Level 5 . | . . . . . . . . . . . . High Security . | . . . . . . . . . . . . Max Security . | . . . . . . . . . . . . Peak Influence 912 | 5 105 . . 912 318 651 . . . . 539 Initial 318 | . 3 . . . 318 194 . . . . 318 Average 290 | 2 37 . . 317 298 397 . . . . 414 Influence Increases 4632 | 30 274 . . 1678 . 1046 60 584 . 95 865 Destroy 0b10 Robot/C 1920 | . 140 . . 960 . 260 40 380 . . 140 Destroy 0b10 Robot/NC 330 | 30 20 . . 150 . 80 . 10 . 5 35 Destroy Leader 446 | . 42 . . 230 . 94 10 40 . . 30 Allied During Kill 271 | . . . . 81 . 41 10 139 . . . Trap Triggered on 0b10 30 | . . . . 30 . . . . . . . Successful Hack 68 | . 12 . . 18 . 38 . . . . . Select Force Hacks 30 | . 30 . . . . . . . . . . Disable Machine 210 | . . . . 75 . 105 . . . . 30 Destroy Structure 307 | . . . . 89 . 98 . . . . 120 Advance Influence 300 | . . . . . . . . . . . 300 Partial Spotted 15 | . . . . . . . . . . . 15 Lose Combat Pursuer 705 | . 30 . . 45 . 330 . 15 . 90 195 Influence Decreases 4137 | 25 278 1 . 768 632 730 571 409 258 65 400 Entered New Map 1187 | . 2 1 . . 592 84 221 17 258 . 12 Time Decay 2170 | 25 276 . . 508 40 416 350 292 . 25 238 Lost Part 370 | . . . . 90 . 80 . 10 . 40 150 Lost Ally 110 | . . . . 20 . . . 90 . . . Purge Threat 300 | . . . . 150 . 150 . . . . . Squads Dispatched 41 | . 3 . . 19 . 13 . 1 . . 5 Investigation 16 | . 2 . . 7 . 4 . . . . 3 Extermination 9 | . . . . 5 . 3 . . . . 1 Reinforcement 12 | . 1 . . 7 . 3 . . . . 1 Assault 1 | . . . . . . . . 1 . . . Garrison 3 | . . . . . . 3 . . . . . Intercept . | . . . . . . . . . . . . Searches Triggered . | . . . . . . . . . . . . Construction Impeded 6 | . . . . 4 . 2 . . . . . Haulers Reinforced 1 | . . . . 1 . . . . . . . Active Scanning Responses . | . . . . . . . . . . . . Cargo Convoy Interrupts . | . . . . . . . . . . . . Stealth | -11 -10 -10 -8 -6 -6 -6 -6 -6 -6 -5 -5 --------- Run | Yrd Mat Sub Scr Fac Was Fac Low Low Dat Pro Fac Distress Signals 5 | . . . . 2 . 2 . . . . 1 Communications Jammed . | . . . . . . . . . . . . Distress Signals . | . . . . . . . . . . . . Times Spotted 194 | . 13 . . 58 4 49 3 23 4 13 27 Peak Tracking Total 11 | . 5 . . 6 4 11 1 7 3 8 9 Tactical Retreats 18 | . 1 . . 1 1 8 . 1 . 2 4 Traps | -11 -10 -10 -8 -6 -6 -6 -6 -6 -6 -5 -5 ------- Run | Yrd Mat Sub Scr Fac Was Fac Low Low Dat Pro Fac Traps Triggered 6 | . 2 . . 2 . 2 . . . . . Indirectly . | . . . . . . . . . . . . Trap Hack Attempts . | . . . . . . . . . . . . Triggered . | . . . . . . . . . . . . Disarmed . | . . . . . . . . . . . . Reprogrammed . | . . . . . . . . . . . . Reused 3 | . . . . 3 . . . . . . . Traps Extracted . | . . . . . . . . . . . . Installed 3 | . . . . 3 . . . . . . . Triggered 3 | . . . . 3 . . . . . . . Most Traps Carried 3 | . . . 3 3 . . . . . . . Machines | -11 -10 -10 -8 -6 -6 -6 -6 -6 -6 -5 -5 ---------- Run | Yrd Mat Sub Scr Fac Was Fac Low Low Dat Pro Fac Machines Disabled 18 | . . . . 5 . 7 3 1 . . 2 Max in Single Turn 2 | . . . . 2 . . 1 1 . . 1 Garrison Access 1 | . . . . 1 . . . . . . . Machines Repaired . | . . . . . . . . . . . . Machines Dismantled . | . . . . . . . . . . . . Machines Sabotaged . | . . . . . . . . . . . . Overloaded Fab Kills . | . . . . . . . . . . . . Hacking | -11 -10 -10 -8 -6 -6 -6 -6 -6 -6 -5 -5 --------- Run | Yrd Mat Sub Scr Fac Was Fac Low Low Dat Pro Fac Machines Accessed 48 | . 4 . 3 13 . 14 2 . 4 . 8 Terminals 14 | . 3 . . 4 . 5 . . . . 2 Fabricators 3 | . . . . 1 . 1 . . . . 1 Repair Stations 5 | . . . . 1 . 2 . . . . 2 Recycling Units 12 | . 1 . . 6 . 2 . . . . 3 Scanalyzers 2 | . . . . . . 2 . . . . . Garrison Access 3 | . . . . 1 . 2 . . . . . Total Hacks 120 | . 10 . 8 23 . 27 8 . 28 . 16 Successful 80 | . 5 . 8 17 . 13 8 . 28 . 1 Failed 40 | . 5 . . 6 . 14 . . . . 15 Catastrophic 7 | . . . . 1 . 4 . . . . 2 Database Lockouts . | . . . . . . . . . . . . Manual 44 | . 7 . . 15 . 11 . . . . 11 Terminals 33 | . 9 . . 11 . 9 . . . . 4 Fabricators 7 | . . . . 2 . 3 . . . . 2 Repair Stations 9 | . . . . 2 . 4 . . . . 3 Recycling Units 18 | . 1 . . 7 . 3 . . . . 7 Scanalyzers 4 | . . . . . . 4 . . . . . Garrison Access 5 | . . . . 1 . 4 . . . . . Terminal Hacks 51 | . 2 . 8 4 . 1 8 . 28 . . Record 25 | . . . 7 . . . 7 . 11 . . Part Schematic 10 | . . . . 1 . . . . 9 . . Robot Schematic 5 | . . . . . . . . . 5 . . Robot Analysis 1 | . 1 . . . . . . . . . . Prototype ID Bank 3 | . . . . . . . . . 3 . . Open Door 1 | . . . . . . . 1 . . . . Branch Access Points 1 | . . . . 1 . . . . . . . Terminal Index 2 | . 1 . . 1 . . . . . . . Unreport Threat 2 | . . . . 1 . 1 . . . . . Proto ID Catalog 1 | . . . 1 . . . . . . . . Fabricator Hacks 5 | . . . . 2 . 3 . . . . . Network Status 1 | . . . . . . 1 . . . . . Load Schematic 2 | . . . . 1 . 1 . . . . . Build 2 | . . . . 1 . 1 . . . . . Repair Station Hacks 3 | . . . . 2 . 1 . . . . . Scan Component 2 | . . . . 1 . 1 . . . . . Repair 1 | . . . . 1 . . . . . . . Recycling Unit Hacks . | . . . . . . . . . . . . Scanalyzer 3 | . . . . . . 3 . . . . . Insert Component 1 | . . . . . . 1 . . . . . Analyze 2 | . . . . . . 2 . . . . . Garrison Access Hacks 1 | . . . . 1 . . . . . . . Seal Access 1 | . . . . 1 . . . . . . . Unauthorized Hacks 17 | . 3 . . 8 . 5 . . . . 1 Terminals 7 | . 2 . . 2 . 3 . . . . . Assimilate 1 | . 1 . . . . . . . . . . Botnet 6 | . 1 . . 2 . 3 . . . . . Fabricators . | . . . . . . . . . . . . Repair Stations . | . . . . . . . . . . . . Recycling Units 10 | . 1 . . 6 . 2 . . . . 1 Tunnel 1 | . 1 . . . . . . . . . . Fedlink 6 | . . . . 6 . . . . . . . Scrapoids 1 | . . . . . . . . . . . 1 Scraphulk 2 | . . . . . . 2 . . . . . Scanalyzers . | . . . . . . . . . . . . Garrison Access . | . . . . . . . . . . . . Data Cores Recovered . | . . . . . . . . . . . . Used . | . . . . . . . . . . . . Hacking Detections 30 | . 3 . . 6 . 13 . . . . 8 Full Trace Events 5 | . . . . 1 . 2 . . . . 2 Feedback Events . | . . . . . . . . . . . . Feedback Blocked . | . . . . . . . . . . . . Robot Schematics Acquired 5 | . . . . . . . . . 5 . . Robots Built . | . . . . . . . . . . . . Authchips . | . . . . . . . . . . . . Time . | . . . . . . . . . . . . Total Robot Build Rating . | . . . . . . . . . . . . Part Schematics Acquired 11 | . . . . 1 . 1 . . 9 . . Parts Built 2 | . . . . 1 . 1 . . . . . Authchips . | . . . . . . . . . . . . Time 142 | . . . . 95 . 47 . . . . . Total Part Build Rating 10 | . . . . 5 . 5 . . . . . Parts Repaired 1 | . . . . 1 . . . . . . . Time 32 | . . . . 32 . . . . . . . Parts Recycled . | . . . . . . . . . . . . Recycled Matter . | . . . . . . . . . . . . Retrieved Matter . | . . . . . . . . . . . . Retrieved Components . | . . . . . . . . . . . . Parts Scanalyzed 1 | . . . . . . 1 . . . . . Part Schematics Acquired 1 | . . . . . . 1 . . . . . Parts Damaged 1 | . . . . . . 1 . . . . . Bothacking | -11 -10 -10 -8 -6 -6 -6 -6 -6 -6 -5 -5 ------------ Run | Yrd Mat Sub Scr Fac Was Fac Low Low Dat Pro Fac Used RIF Installer . | . . . . . . . . . . . . Robots Hacked . | . . . . . . . . . . . . Non-combat . | . . . . . . . . . . . . Combat . | . . . . . . . . . . . . Robot Hacks Applied . | . . . . . . . . . . . . Relay Couplers Released . | . . . . . . . . . . . . Fabnet Peak Effective % . | . . . . . . . . . . . . Robots Rewired 6 | . . . . . . . 4 2 . . . Allies Hacked . | . . . . . . . . . . . . Hacks Repelled . | . . . . . . . . . . . . Allies | -11 -10 -10 -8 -6 -6 -6 -6 -6 -6 -5 -5 -------- Run | Yrd Mat Sub Scr Fac Was Fac Low Low Dat Pro Fac Total Allies 9 | . . . 1 . . 2 4 2 . . . Largest Group 6 | . . . 1 1 . 2 6 6 3 . . Highest-Rated Group 353 | . . . 56 58 . 246 353 353 141 . . Highest-Rated Ally 123 | . . . 56 58 . 123 123 123 92 . . Total Orders 47 | . . . 2 . . 14 8 23 . . . STAY 19 | . . . 1 . . 7 4 7 . . . FOLLOW 19 | . . . 1 . . 7 1 10 . . . EXPLORE 7 | . . . . . . . 2 5 . . . RETURN 2 | . . . . . . . 1 1 . . . Ally Attacks 170 | . . . . 60 . 31 11 60 8 . . Total Damage 4601 | . . . . 1523 . 1219 302 1467 90 . . Kills 40 | . . . . 16 . 9 2 12 1 . . Allies Corrupted 1 | . . . . . . . . 1 . . . Allies Melted 1 | . . . . . . . . 1 . . . Intel | -11 -10 -10 -8 -6 -6 -6 -6 -6 -6 -5 -5 ------- Run | Yrd Mat Sub Scr Fac Was Fac Low Low Dat Pro Fac Active Infowar (turns) 6791 | 50 761 104 3392 2161 98 225 . . . . . Terrain 4353 | 50 761 104 3392 46 . . . . . . . Decoding 2477 | . . . . 2154 98 225 . . . . . Robot Analysis Total 152 | . 1 . . . . . . . 151 . . Derelict Logs Recovered 3 | . . . . . . . 2 . . 1 . Drone Launches 8 | . . . . . . . 2 6 . . . Drone Recoveries 6 | . . . . . . . 2 4 . . . Decoded 0b10 Intel 131 | . . . . 110 4 17 . . . . . Items 131 | . . . . 110 4 17 . . . . . Exploration | -11 -10 -10 -8 -6 -6 -6 -6 -6 -6 -5 -5 ------------- Run | Yrd Mat Sub Scr Fac Was Fac Low Low Dat Pro Fac Turns Passed 9924 | 134 761 104 3392 2161 98 1008 789 736 102 136 503 Spaces Moved 7479 | 36 403 32 2081 1151 128 1254 740 826 94 192 542 Core 259 | 13 . . . . . . . . . . 246 Treads 3425 | 23 403 32 2080 887 . . . . . . . Legs . | . . . . . . . . . . . . Wheels 65 | . . . 1 . . . . . . . 64 Hover 3730 | . . . . 264 128 1254 740 826 94 192 232 Flight . | . . . . . . . . . . . . Fastest Speed 48 | 50 160 160 80 48 48 48 53 53 53 53 50 Average Speed 103 | 148 160 160 160 135 48 56 56 53 53 59 61 Slowest Speed 240 | 200 160 160 240 165 48 58 58 53 58 118 120 Overloaded Moves . | . . . . . . . . . . . . Propulsion Burnouts . | . . . . . . . . . . . . Robots Hopped . | . . . . . . . . . . . . Potential Cave-ins . | . . . . . . . . . . . . Cave-ins Triggered . | . . . . . . . . . . . . Exploration Rate (%) 45 | 5 38 4 82 21 74 27 85 78 78 42 15 Regions Visited 11 Branch Regions 6 Pre-discovered Areas 32 | . 1 . . 1 . . . . 30 . . Known Exits Taken 1 | . . . . . . 1 . . . . . Unknown Exits Taken 8 | 1 1 1 1 . . . 1 1 1 1 . Scrap Searched 7 | . . . 2 . . . 2 1 . 2 . Spaces Dug 6 | . . . . 1 . . 3 . . . 2 Terrain Destroyed 212 | . . . . 88 . 30 6 1 22 1 64 Melee 2 | . . . . . . . . . . . 2 Projectile 29 | . . . . 6 . 10 6 1 1 1 4 AOE 181 | . . . . 82 . 20 . . 21 . 58 Terrain Rammed . | . . . . . . . . . . . . Walls Destroyed . | . . . . . . . . . . . . Machines Disabled . | . . . . . . . . . . . . Actions | -11 -10 -10 -8 -6 -6 -6 -6 -6 -6 -5 -5 --------- Run | Yrd Mat Sub Scr Fac Was Fac Low Low Dat Pro Fac Total 9044 | 70 468 85 2161 1495 150 1467 1095 1073 121 206 653 Wait 804 | . 20 54 2 109 14 108 289 192 11 . 5 Move 7469 | 35 402 31 2080 1151 127 1253 739 825 93 191 542 Hop . | . . . . . . . . . . . . Pick Up 86 | 1 8 . 34 17 . 13 3 1 . 3 6 Fast Attach 55 | 7 . . 2 12 2 9 5 . . 1 17 Attach 44 | . . . 2 14 . 7 2 1 4 4 10 Detach 26 | . . . 3 7 . 6 1 . . 1 8 Swap 49 | . 4 . 3 21 . 4 4 8 2 3 . Drop 80 | . 2 . 35 19 . 8 5 1 . . 10 Fire 348 | 27 32 . . 138 7 56 12 20 10 3 43 Melee 5 | . . . . . . . . . . . 5 Ram 9 | . . . . . . 3 . . 1 . 5 Kick . | . . . . . . . . . . . . Crush 4 | . . . . 4 . . . . . . . Escape Stasis . | . . . . . . . . . . . . Rewire 60 | . . . . . . . 35 25 . . . Trap 3 | . . . . 3 . . . . . . . Miscellaneous 2 | . . . . . . . . . . . 2 Route ------- -11/Scrapyard -10/Materials (discovered 2 exits: [*Mat] / [*Sub]) -10/Subcaves (discovered 2 exits: [*Mat] / *Scr) -8/Scraptown (discovered 2 exits: *Fac x2) -6/Factory (discovered 2 exits: *Low x2) -6/Waste -6/Factory -6/Lower Caves -6/Lower Caves (discovered 2 exits: *Fac / *Dat) -6/Data Miner -5/Proximity Caves -5/Factory (discovered 3 exits: *Fac x2 / Upp) History --------- Turn | Location | Event 39 | -11/Scrapyard | Discovered new exit (range 13) 135 | -11/Scrapyard | Entered Materials 308 | -10/Materials | Build established: Mutant 461 | -10/Materials | Discovered new exit (range 11) 524 | -10/Materials | Discovered new exit (range 6) 896 | -10/Materials | Entered Subcaves 897 | -10/Subcaves | Approached by a straggling Scientist 976 | -10/Subcaves | Discovered new exit (range 13) 985 | -10/Subcaves | Scientist uncovered a shortcut to Scraptown 1000 | -10/Subcaves | Entered Scraptown 1000 | -8/Scraptown | System corruption cleaned by C-Scrubber 1148 | -8/Scraptown | Visited UFD Registry 1148 | -8/Scraptown | Registered with UFD as "Powerrunner" 1188 | -8/Scraptown | Visited Red Mages 1505 | -8/Scraptown | Visited A0-MCA Data Center 1515 | -8/Scraptown | Given an A- rating by A0-MCA 1518 | -8/Scraptown | Found A0-MCA's Component Scanner 1550 | -8/Scraptown | Visited Abandonware Association 1583 | -8/Scraptown | Visited Junk Repository 1705 | -8/Scraptown | Visited Science Guys 1778 | -8/Scraptown | Visited Research Penetration Think Tank 1821 | -8/Scraptown | Visited Infowarlord's Domain 1853 | -8/Scraptown | Visited Modified Component R&D 1941 | -8/Scraptown | Visited Botcube Research 2090 | -8/Scraptown | Found Botcube 2205 | -8/Scraptown | Visited Curators Association 2231 | -8/Scraptown | Visited Supply Room 2740 | -8/Scraptown | Discovered new exit (range 7) 3072 | -8/Scraptown | Found Scrap Suit 3444 | -8/Scraptown | Botcube activated 3660 | -8/Scraptown | Learned abandonware demo "REPAIR.EXE" 4111 | -8/Scraptown | Visited Fellowship of the Rings 4143 | -8/Scraptown | Visited Comm Corps 4311 | -8/Scraptown | Met Optimus 4311 | -8/Scraptown | Accepted into 0bPrime 4384 | -8/Scraptown | Discovered new exit (range 5) 4392 | -8/Scraptown | Entered Factory 4392 | -6/Factory | Accompanied by 1 ally 4392 | -6/Factory | Evolved 8 slots: Power x1, Propulsion x3, Utility x2, Weapon x2 4467 | -6/Factory | Loaded intel: 8 recycling unit locations 4513 | -6/Factory | Learned location of Protoforge (-2) 4708 | -6/Factory | Build established: Gunner 4965 | -6/Factory | Identified exit to Lower Caves 5085 | -6/Factory | Build established: Scavenger-Gunner 5439 | -6/Factory | Repaired Imp. Treads? 5942 | -6/Factory | Spotted B-75 Beast 5959 | -6/Factory | Destroyed B-75 Beast 6431 | -6/Factory | Fabricated Gravmag Array? 6553 | -6/Factory | Sucked down chute 6553 | -6/Factory | Entered Waste 6557 | -6/Waste | Spotted C-40 Crusher 6561 | -6/Waste | Spotted C-40 Crusher 6568 | -6/Waste | EMP discharged 6582 | -6/Waste | Spotted C-40 Crusher 6582 | -6/Waste | Spotted C-40 Crusher 6596 | -6/Waste | Spotted C-40 Crusher 6615 | -6/Waste | Discovered new exit (range 12) 6640 | -6/Waste | Destroyed C-40 Crusher 6651 | -6/Waste | Entered Factory 6762 | -6/Factory | Lost 4 parts (1p1n2w) 6788 | -6/Factory | Fabricated Gravmag Array? 6829 | -6/Factory | Lost 3 parts (1p1n1w) 6977 | -6/Factory | System corruption reached 10% 7001 | -6/Factory | Build established: Mutant 7157 | -6/Factory | Scraphulk reinforcements arrived? 7341 | -6/Factory | Discovered exit to Lower Caves (range 11) 7427 | -6/Factory | Build established: Gunner 7443 | -6/Factory | Scraphulk reinforcements arrived? 7659 | -6/Factory | Entered Lower Caves 7659 | -6/Lower Caves | Accompanied by 2 allies 7800 | -6/Lower Caves | Entered an active Warlord outpost 7807 | -6/Lower Caves | Learned Factory trap positions 7807 | -6/Lower Caves | Learned Armory emergency access door positions 7807 | -6/Lower Caves | Learned Extension security intel 7807 | -6/Lower Caves | Learned Armory terminal intel 7939 | -6/Lower Caves | Attacked by a delusional Derelict stockpiling parts 8025 | -6/Lower Caves | Discovered new exit (range 65) 8276 | -6/Lower Caves | Learned 4 Factory zone layouts 8279 | -6/Lower Caves | Learned 4 Factory zone layouts 8370 | -6/Lower Caves | Attacked by a delusional Derelict stockpiling Unaware 8448 | -6/Lower Caves | Entered another Lower Caves area 8448 | -6/Lower Caves | Accompanied by 6 allies 8484 | -6/Lower Caves | Discovered new exit (range 27) 8746 | -6/Lower Caves | Attracted the attention of an 0b10 outpost 8809 | -6/Lower Caves | Lost 4 allies 8848 | -6/Lower Caves | Spotted B-75 Beast 8886 | -6/Lower Caves | Destroyed B-75 Beast 8948 | -6/Lower Caves | Build established: Scavenger-Gunner 9136 | -6/Lower Caves | Core integrity fell below 50% 9168 | -6/Lower Caves | Discovered new exit (range 5) 9176 | -6/Lower Caves | Attracted the attention of an 0b10 checkpoint 9184 | -6/Lower Caves | Entered Data Miner 9184 | -6/Data Miner | Accompanied by 3 allies 9184 | -6/Data Miner | Discovered new exit (range 6) 9195 | -6/Data Miner | Met Data Miner 9206 | -6/Data Miner | Learned location of Section 7 (-2) 9206 | -6/Data Miner | Acquired the access code to Warlord's prototype stash 9213 | -6/Data Miner | Received God Mode back door access code from Data Miner 9229 | -6/Data Miner | Interfaced with the Data Conduit 9286 | -6/Data Miner | Entered Proximity Caves 9288 | -5/Proximity Caves | Spotter reported a threat 9289 | -5/Proximity Caves | Spotter reported a threat 9315 | -5/Proximity Caves | Lost 9 parts (3n6w) 9401 | -5/Proximity Caves | Learned Factory emergency access door positions 9414 | -5/Proximity Caves | Attracted the attention of an 0b10 checkpoint 9416 | -5/Proximity Caves | Discovered new exit (range 10) 9422 | -5/Proximity Caves | Entered Factory 9422 | -5/Factory | Evolved 2 slots: Utility x1, Weapon x1 9423 | -5/Factory | Identified exit to Upper Caves 9423 | -5/Factory | Identified exit to Factory 9424 | -5/Factory | Loaded intel: 127 trap records 9426 | -5/Factory | Loaded intel: 300 machine locations 9449 | -5/Factory | Lost 7 parts (1p4n2w) 9522 | -5/Factory | Discovered exit to Factory (range 15) 9541 | -5/Factory | Build established: Mutant 9569 | -5/Factory | Lost 4 parts (1p2n1w) 9593 | -5/Factory | Core integrity fell below 50% 9616 | -5/Factory | Lost 5 parts (2n1u2w) 9817 | -5/Factory | Core integrity fell below 20% 9847 | -5/Factory | Lost 4 parts (3n1w) 9925 | -5/Factory | Self-destructed Last Messages --------------- 09876_ K-01 Serf collects debris. 09877_ Slug penetrates Wall. 09879_ K-01 Serf collects debris. 09879_ Slug penetrates P-70 Sage. 09879_ K-01 Serf destroyed. 09881_ Slug penetrates Wall. 09887_ Extracted 4 matter. 09890_ Acquired Lgt. Ion Engine. 09892_ Acquired 26 matter. 09893_ Slug penetrates P-70 Sage. 09893_ P-70 Sage destroyed. 09893_ M-28 Smith suffers critical hit (Destroy). 09893_ M-28 Smith destroyed. 09896_ Acquired 91 matter. 09897_ Acquired Antigrav System. 09898_ Lgt. Ion Engine destroyed. 09898_ Acquired 5 matter. 09901_ K-01 Serf collects debris. 09925_ Critical hit (Burn: +50). 09925_ Antigrav System destroyed. Map ----- +----------------------------------------------------+ | # #??????????????????????# # # | | #+##### #?"""??????????????????# / # | | #?# #?"""??????????????????# # # | | #?# #?"""??????????????????# # # | | ### #??????????????????????# # # | | + #??????????????????????# # # | | """ ### ########???????????????# # ## | | """ #?# # ??#?????????????# # | | """ #?# # #?????????????# # | | #?# # """""" #?????????????########## | | #####?# # """""" #??????????????????????# | | ??????# # """""" #??????????????????????# | | ??????# + """""" #??????????????????????# | | ??????# # * #??????????????????"""?# | | ??????# # #??????????????????"Y"?# | | ??????# # #??????????????????????# | | ??????# #####+#########?????????????????+ | | ??????# ^ #?????????????????# | | ??????# ^ #?????????"""?"""?# | | ??????+ ^ ##????????"""?"""?# | | ??????# ^ T#????????"""?"""?# | | ??????# ^ #????????????????# | | ??????####+########## ###################^^^^^ | | ????????????????????#m # + | | ????????????????????# # ]]] ##########/### | | ????????????????????# @# ]] #??# | | ????????????????????# # ]] #??# """"" " | | ??????????"""?"""???#t + #??#[ """"""" | | ??????????"""?"""???# # " F" #??# """"""" | | ??????????"""?"""???# # """" #??# """"" | | ???????????########## # #??# | | ?????????? ################/####### | | ?????????? # [ #?# #### | | ?????????? # """ #?# ## # ! | | ?????????? u# """"" ### #### ! | | ?????????? # """"" + / "" | | ???????????### # # # "" | | ?????????????# g ###+########## # | | ?"""?"""?????# gg ^ = ##/#### | | ?"""?"""?????# ^^!! !##### | | ?"""?"""?????# ^%=== #???# """ | | ?????????????# ^%![!#???# "R | | ?"""?"""?????# ^ ===!#???# """ | | ?"""?"""?????# ##########+#######+####### "" | | ?"""?"""?????# ????????????# |%! # | | ?????????????# ???????""""??# = ! #####+ | | ?????????????# ????????""""??# #??? | | ?????????????# ?????????""""??# #??? | | ?????????????# ??????????""""??# / ? | | ?????????????????????????""""? + ### | +----------------------------------------------------+ Best States ------------- Heat Dissipation 56 Energy Generation 32 Energy Capacity 550 Matter Stores 300 Matter Capacity 300 Sight Range 16 Terrain Scan Range 16 Terrain Scan Density 10 Armor Coverage 150 Propulsion Shielding 15 Evasion (%) 55 Targeting Accuracy 28 Target Analysis 6 Core Analysis 9 Recoil Reduction 5 Offensive Hacking 10 Item Schematics ----------------- Gravmag Array | -6/Factory | Hacked Mic. Fission Core | -6/Factory | Scanalyzed Combat Drone Bay | -6/Data Miner | Free Lgt. Regenerative Plating | -6/Data Miner | Free Cld. Nuclear Pulse Thruster | -6/Data Miner | Free Imp. Matter Compressor | -6/Data Miner | Free Thunder Hammer | -6/Data Miner | Free Imp. Linear Gravjet | -6/Data Miner | Free Adv. Particle Charger | -6/Data Miner | Free Hardcell Cannon | -6/Data Miner | Free Dispersion Rifle | -6/Data Miner | Free Robot Schematics ------------------ G-50 Soldier | -6/Data Miner | Free Y-54 Guardian | -6/Data Miner | Free Y-64 Sentinel | -6/Data Miner | Free S-27 Virus | -6/Data Miner | Free G-67 Veteran | -6/Data Miner | Free Fabricated ------------ Gravmag Array | x1 | -6/Factory Gravmag Array | x1 | -6/Factory Repaired ---------- Imp. Treads | 37% | -6/Factory Alien Tech Used ----------------- None Achievements -------------- None Challenges ------------ None Game ------ Seed LightpackAssemblyCloak Manual? 0 Play Time 01:35:03 Cumulative 339.7 hours Start 2025.06.22 @ 13:15:11 End 2025.06.22 @ 14:54:42 Sessions 1 Manual Loads 0 Difficulty Rogue Special Mode None Game No. 203 Rogue 203 Adventurer 0 Explorer 0 Win Type - Total 4 Types 2/0/1/1/0/0/0/0/0/0 Lore% 84 Gallery% 72 Achievement% 67 Wizard Run 0 Options --------- Layout 2 ASCII 0 Keyboard 1 Movement Vi Keybinds 0 Fullscreen 1 Font 16/Tamsyn Map View 55x47 Zoom Use 0% Tactical HUD 1 Map Filters NONE Filters NONE Steam 0 RUN: 145659c4-1f6a-48e6-af2e-258619843944